fUSD/lending_fUSD_20240105
["ID","MTS","AMOUNT","RATE_DAILY","PERIOD"]
[310326464,1704473489350,-645.88,0.00031506,2]
[310326465,1704473489360,-804.31,0.00031506,2]
[310326466,1704473489370,-500.0,0.00031506,2]
[310326467,1704473489380,-500.0,0.00031506,2]
[310326468,1704473489390,-780.05,0.00031506,2]
[310326469,1704473489400,-20128.17,0.00031506,2]
[310326470,1704473489410,-500.0,0.00031506,2]
[310326471,1704473489419,-618.16,0.00031506,2]
[310326472,1704473489429,-500.0,0.00031506,2]
[310326473,1704473489438,-500.0,0.00031506,2]
[310326474,1704473489448,-500.0,0.00031506,2]
[310326475,1704473489457,-510.82,0.00031506,2]
[310326476,1704473489467,-500.0,0.00031506,2]
[310326477,1704473489478,-500.0,0.00031506,2]
[310326478,1704473489493,-500.0,0.00031506,2]
[310326479,1704473489506,-1056.97,0.00031506,2]
[310326480,1704473489515,-1483.19,0.00031506,2]
[310326481,1704473489525,-500.0,0.00031506,2]
[310326482,1704473489535,-500.0,0.00031506,2]
[310326483,1704473489545,-500.0,0.00031506,2]
[310326484,1704473489555,-1304.64,0.00031506,2]
[310326485,1704473489565,-500.0,0.00031506,2]
[310326486,1704473489575,-500.0,0.00031506,2]
[310326487,1704473489585,-500.0,0.00031506,2]
[310326488,1704473489596,-759.04,0.00031506,2]
[310326489,1704473489606,-3227.18,0.00031506,2]
[310326490,1704473489615,-1800.48,0.00031506,2]
[310326491,1704473489637,-3583.58,0.00031506,2]
[310326492,1704473489648,-768.62,0.00031506,2]
[310326493,1704473489657,-500.0,0.00031506,2]
[310326494,1704473489667,-500.0,0.00031506,2]
[310326495,1704473489675,-500.0,0.00031506,2]
[310326496,1704473489686,-2756.04,0.00031506,2]
[310326497,1704473489695,-2834.13,0.00031506,2]
[310326498,1704473489706,-1051.18,0.00031506,2]
[310326499,1704473489715,-2515.3,0.00031506,2]
[310326500,1704473489726,-500.0,0.00031506,2]
[310326501,1704473489737,-5299.03,0.00031506,2]
[310326502,1704473489747,-500.0,0.00031506,2]
[310326503,1704473489758,-664.57,0.00031506,2]
[310326504,1704473489768,-537.2,0.00031506,2]
[310326505,1704473489778,-500.0,0.00031506,2]
[310326506,1704473489789,-512.71,0.00031506,2]
[310326507,1704473489799,-500.0,0.00031506,2]
[310326508,1704473489809,-500.0,0.00031506,2]
[310326509,1704473489819,-258.74067844,0.00031506,2]
[310326510,1704473489828,-500.0,0.00031506,2]
[310326511,1704473489838,-500.0,0.00031506,2]
[310326512,1704473489848,-1696.0,0.00031506,2]
[310326513,1704473489858,-500.0,0.00031506,2]
[310326514,1704473489868,-2490.22,0.00031506,2]
[310326515,1704473489880,-3340.06,0.00031506,2]
[310326516,1704473489891,-1285.5,0.00031506,2]
[310326517,1704473489904,-500.0,0.00031506,2]
[310326518,1704473489914,-848.87,0.00031506,2]
[310326519,1704473489924,-500.0,0.00031506,2]
[310326520,1704473489935,-500.0,0.00031506,2]
[310326521,1704473489946,-554.12,0.00031506,2]
[310326522,1704473489956,-606.02,0.00031506,2]
[310326523,1704473489967,-11508.87,0.00031506,2]
[310326524,1704473489978,-500.0,0.00031506,2]
[310326525,1704473489990,-1649.63,0.00031506,2]
[310326526,1704473490000,-500.0,0.00031506,2]
[310326527,1704473490013,-500.0,0.00031506,2]
[310326528,1704473490023,-1188.82,0.00031506,2]
[310326529,1704473490036,-500.0,0.00031506,2]
[310326530,1704473490052,-687.41,0.00031506,2]
[310326531,1704473490073,-500.0,0.00031506,2]
[310326532,1704473490083,-1161.09,0.00031506,2]
[310326533,1704473490093,-994.25,0.00031506,2]
[310326534,1704473490103,-500.0,0.00031506,2]
[310326535,1704473490114,-500.0,0.00031506,2]
[310326536,1704473490126,-907.04,0.00031506,2]
[310326537,1704473490136,-3783.36,0.00031506,2]
[310326538,1704473490148,-4030.69,0.00031506,2]
[310326539,1704473490159,-500.0,0.00031506,2]
[310326540,1704473490170,-500.0,0.00031506,2]
[310326541,1704473490181,-2006.85,0.00031506,2]
[310326542,1704473490192,-871.44,0.00031506,2]
[310326543,1704473490203,-500.0,0.00031506,2]
[310326544,1704473490214,-500.0,0.00031506,2]
[310326545,1704473490224,-8452.87,0.00031506,2]
[310326546,1704473490236,-1134.28,0.00031506,2]
[310326547,1704473490246,-500.0,0.00031506,2]
[310326548,1704473490259,-500.0,0.00031506,2]
[310326549,1704473490270,-566.66,0.00031506,2]
[310326550,1704473490281,-1157.92,0.00031506,2]
[310326551,1704473490291,-500.0,0.00031506,2]
[310326552,1704473490301,-500.0,0.00031506,2]
[310326553,1704473490312,-500.0,0.00031506,2]
[310326554,1704473490323,-500.0,0.00031506,2]
[310326555,1704473490333,-512.07,0.00031506,2]
[310326556,1704473490344,-1638.59,0.00031506,2]
[310326557,1704473490355,-1195.76,0.00031506,2]
[310326558,1704473490365,-1402.48,0.00031506,2]
[310326559,1704473490376,-500.0,0.00031506,2]
[310326560,1704473490386,-7740.43,0.00031506,2]
[310326561,1704473490396,-500.0,0.00031506,2]
[310326562,1704473490406,-500.0,0.00031506,2]
[310326563,1704473490416,-500.0,0.00031506,2]
[310326564,1704473490426,-504.28,0.00031506,2]
[310326565,1704473490436,-500.0,0.00031506,2]
[310326566,1704473490447,-1600.27,0.00031506,2]
[310326567,1704473490456,-500.0,0.00031506,2]
[310326568,1704473490467,-500.0,0.00031506,2]
[310326569,1704473490477,-500.0,0.00031506,2]
[310326570,1704473490487,-2394.98,0.00031506,2]
[310326571,1704473490497,-500.0,0.00031506,2]
[310326572,1704473490509,-1206.82,0.00031506,2]
[310326573,1704473490520,-500.0,0.00031506,2]
[310326574,1704473490530,-1116.25,0.00031506,2]
[310326575,1704473490541,-500.0,0.00031506,2]
[310326576,1704473490552,-1341.2,0.00031506,2]
[310326577,1704473490563,-1246.52,0.00031506,2]
[310326578,1704473490573,-500.0,0.00031506,2]
[310326579,1704473490583,-500.0,0.00031506,2]
[310326580,1704473490594,-634.36808762,0.00031506,2]
[310326581,1704473490605,-884.54,0.00031506,2]
[310326582,1704473490616,-500.0,0.00031506,2]
[310326583,1704473490627,-3145.82,0.00031506,2]
[310326584,1704473490639,-1393.24,0.00031506,2]
[310326585,1704473490649,-834.29,0.00031506,2]
[310326586,1704473490661,-1151.41,0.00031506,2]
[310326587,1704473490671,-500.0,0.00031506,2]
[310326588,1704473490683,-500.0,0.00031506,2]
[310326589,1704473490694,-500.0,0.00031506,2]
[310326590,1704473490705,-542.06,0.00031506,2]
[310326591,1704473490716,-790.38,0.00031506,2]
[310326592,1704473490727,-500.0,0.00031506,2]
[310326593,1704473490738,-501.35,0.00031506,2]
[310326594,1704473490750,-1526.32,0.00031506,2]
[310326595,1704473490763,-500.0,0.00031506,2]
[310326596,1704473490775,-757.34,0.00031506,2]
[310326597,1704473490787,-500.0,0.00031506,2]
[310326598,1704473490797,-500.0,0.00031506,2]
[310326599,1704473490809,-307.71,0.00031507,2]
[310326600,1704473490821,-167.02,0.00031645,2]
[310326601,1704473490832,-208.0,0.0003165,2]
[310326602,1704473490843,-282.0,0.0003165,2]
[310326603,1704473490854,-2423.05760651,0.00031682,3]
[310326604,1704473490865,-25611.6226273,0.00031758,2]
[310326605,1704473490877,-9922.4497843,0.00031758,2]
[310326606,1704473490890,-3476.7587522,0.00031758,2]
[310326607,1704473490904,-20700.8813975,0.00031758,2]
[310326608,1704473490915,-4809.4396332,0.00031758,2]
[310326609,1704473490926,-100787.9147632,0.00031758,2]
[310326610,1704473490937,-500.0,0.00031779,2]
[310326611,1704473490947,-500.0,0.0003178,2]
[310326612,1704473490958,-500.0,0.0003178,2]
[310326613,1704473490969,-500.0,0.0003178,2]
[310326614,1704473490980,-500.0,0.0003178,2]
[310326615,1704473490991,-500.0,0.0003178,2]
[310326616,1704473491002,-500.0,0.0003178,2]
[310326617,1704473491012,-630.858745,0.0003178,2]
[310326618,1704473491022,-500.0,0.0003178,2]
[310326619,1704473491032,-500.0,0.0003178,2]
[310326620,1704473491042,-500.0,0.0003178,2]
[310326621,1704473491052,-500.0,0.0003178,2]
[310326622,1704473491062,-500.0,0.0003178,2]
[310326623,1704473491072,-500.0,0.0003178,2]
[310326624,1704473491082,-679.76,0.0003178,2]
[310326625,1704473491092,-380.40204324,0.0003178,2]
[310326626,1704473491101,-500.0,0.0003178,2]
[310326627,1704473491110,-549.54736818,0.0003178,2]
[310326628,1704473491120,-500.0,0.0003178,2]
[310326629,1704473491130,-500.0,0.0003178,2]
[310326630,1704473491140,-500.0,0.0003178,2]
[310326631,1704473491150,-500.0,0.0003178,2]
[310326632,1704473491160,-500.0,0.0003178,2]
[310326633,1704473491170,-518.89766203,0.0003178,2]
[310326634,1704473491180,-272.72278356,0.0003178,2]
[310326635,1704473491191,-500.0,0.0003178,2]
[310326636,1704473491201,-500.0,0.0003178,2]
[310326637,1704473491212,-500.0,0.0003178,2]
[310326638,1704473491222,-178.89729604,0.0003178,2]
[310326639,1704473491232,-500.0,0.0003178,2]
[310326640,1704473491242,-500.0,0.0003178,2]
[310326641,1704473491253,-500.0,0.0003178,2]
[310326642,1704473491264,-500.0,0.0003178,2]
[310326643,1704473491275,-500.0,0.0003178,2]
[310326644,1704473491285,-500.0,0.0003178,2]
[310326645,1704473491295,-394.37748762,0.0003178,2]
[310326646,1704473491306,-500.0,0.0003178,2]
[310326647,1704473491316,-500.0,0.0003178,2]
[310326648,1704473491326,-479.88759075,0.0003178,2]
[310326649,1704473491336,-500.0,0.0003178,2]
[310326650,1704473491346,-500.0,0.0003178,2]
[310326651,1704473491357,-500.0,0.0003178,2]
[310326652,1704473491367,-500.0,0.0003178,2]
[310326653,1704473491377,-500.0,0.0003178,2]
[310326654,1704473491387,-500.0,0.0003178,2]
[310326655,1704473491398,-500.0,0.0003178,2]
[310326656,1704473491409,-500.0,0.0003178,2]
[310326657,1704473491419,-500.0,0.0003178,2]
[310326658,1704473491430,-500.0,0.0003178,2]
[310326659,1704473491441,-500.0,0.0003178,2]
[310326660,1704473491452,-500.0,0.0003178,2]
[310326661,1704473491463,-500.0,0.0003178,2]
[310326662,1704473491473,-500.0,0.0003178,2]
[310326663,1704473491484,-500.0,0.0003178,2]
[310326664,1704473491494,-500.0,0.0003178,2]
[310326665,1704473491507,-575.32294545,0.0003178,2]
[310326666,1704473491519,-500.0,0.0003178,2]
[310326667,1704473491530,-500.0,0.0003178,2]
[310326668,1704473491540,-500.0,0.0003178,2]
[310326669,1704473491552,-732.22,0.0003178,2]
[310326670,1704473491563,-500.0,0.0003178,2]
[310326671,1704473491575,-500.0,0.0003178,2]
[310326672,1704473491586,-500.0,0.0003178,2]
[310326673,1704473491597,-500.0,0.0003178,2]
[310326674,1704473491608,-500.0,0.0003178,2]
[310326675,1704473491619,-325.79201149,0.0003178,2]
[310326676,1704473491629,-500.0,0.0003178,2]
[310326677,1704473491639,-500.0,0.0003178,2]
[310326678,1704473491649,-500.0,0.0003178,2]
[310326679,1704473491660,-500.0,0.0003178,2]
[310326680,1704473491671,-557.95,0.0003178,2]
[310326681,1704473491681,-500.0,0.0003178,2]
[310326682,1704473491692,-711.61,0.0003178,2]
[310326683,1704473491703,-500.0,0.0003178,2]
[310326684,1704473491713,-777.32,0.0003178,2]
[310326685,1704473491725,-500.0,0.0003178,2]
[310326686,1704473491735,-500.0,0.0003178,2]
[310326687,1704473491746,-500.0,0.0003178,2]
[310326688,1704473491757,-500.0,0.0003178,2]
[310326689,1704473491768,-500.0,0.0003178,2]
[310326690,1704473491779,-500.0,0.0003178,2]
[310326691,1704473491789,-500.0,0.0003178,2]
[310326692,1704473491800,-500.0,0.0003178,2]
[310326693,1704473491811,-500.0,0.0003178,2]
[310326694,1704473491822,-500.0,0.0003178,2]
[310326695,1704473491833,-500.0,0.0003178,2]
[310326696,1704473491844,-500.0,0.0003178,2]
[310326697,1704473491856,-500.0,0.0003178,2]
[310326698,1704473491866,-500.0,0.0003178,2]
[310326699,1704473491878,-432.48188226,0.0003178,2]
[310326700,1704473491890,-592.48,0.0003178,2]
[310326701,1704473491904,-500.0,0.0003178,2]
[310326702,1704473491915,-500.0,0.0003178,2]
[310326703,1704473491926,-500.0,0.0003178,2]
[310326704,1704473491936,-1000.0,0.0003178,2]
[310326705,1704473491947,-500.0,0.0003178,2]
[310326706,1704473491958,-500.0,0.0003178,2]
[310326707,1704473491968,-996.51,0.0003178,2]
[310326708,1704473491978,-500.0,0.0003178,2]
[310326709,1704473491989,-500.0,0.0003178,2]
[310326710,1704473492000,-500.0,0.0003178,2]
[310326711,1704473492011,-500.0,0.0003178,2]
[310326712,1704473492022,-500.0,0.0003178,2]
[310326713,1704473492033,-500.0,0.0003178,2]
[310326714,1704473492044,-500.0,0.0003178,2]
[310326715,1704473492055,-710.5,0.0003178,2]
[310326716,1704473492065,-500.0,0.0003178,2]
[310326717,1704473492075,-500.0,0.0003178,2]
[310326718,1704473492086,-500.0,0.0003178,2]
[310326719,1704473492096,-500.0,0.0003178,2]
[310326720,1704473492107,-666.1,0.0003178,2]
[310326721,1704473492118,-537.71,0.0003178,2]
[310326722,1704473492129,-500.0,0.0003178,2]
[310326723,1704473492140,-500.0,0.0003178,2]
[310326724,1704473492151,-617.72,0.0003178,2]
[310326725,1704473492162,-500.0,0.0003178,2]
[310326726,1704473492173,-647.0,0.0003178,2]
[310326727,1704473492184,-500.0,0.0003178,2]
[310326728,1704473492194,-500.0,0.0003178,2]
[310326729,1704473492205,-500.0,0.0003178,2]
[310326730,1704473492215,-772.2,0.0003178,2]
[310326731,1704473492226,-500.0,0.0003178,2]
[310326732,1704473492236,-271.55809885,0.0003178,2]
[310326733,1704473492247,-500.0,0.0003178,2]
[310326734,1704473492259,-500.0,0.0003178,2]
[310326735,1704473492269,-500.0,0.0003178,2]
[310326736,1704473492280,-500.0,0.0003178,2]
[310326737,1704473492290,-537.87,0.0003178,2]
[310326738,1704473492301,-1038.34,0.0003178,2]
[310326739,1704473492310,-500.0,0.0003178,2]
[310326740,1704473492321,-500.0,0.0003178,2]
[310326741,1704473492331,-500.0,0.0003178,2]
[310326742,1704473492342,-500.0,0.0003178,2]
[310326743,1704473492352,-500.0,0.0003178,2]
[310326744,1704473492362,-500.0,0.0003178,2]
[310326745,1704473492373,-500.0,0.0003178,2]
[310326746,1704473492383,-500.0,0.0003178,2]
[310326747,1704473492393,-500.0,0.0003178,2]
[310326748,1704473492404,-500.0,0.0003178,2]
[310326749,1704473492415,-500.0,0.0003178,2]
[310326750,1704473492425,-544.08,0.0003178,2]
[310326751,1704473492436,-603.75608215,0.0003178,2]
[310326752,1704473492447,-500.0,0.0003178,2]
[310326753,1704473492457,-656.98,0.0003178,2]
[310326754,1704473492469,-440.93444588,0.0003178,2]
[310326755,1704473492480,-500.0,0.0003178,2]
[310326756,1704473492492,-500.0,0.0003178,2]
[310326757,1704473492502,-500.0,0.0003178,2]
[310326758,1704473492515,-500.0,0.0003178,2]
[310326759,1704473492526,-500.0,0.0003178,2]
[310326760,1704473492536,-669.87,0.0003178,2]
[310326761,1704473492546,-500.0,0.0003178,2]
[310326762,1704473492557,-500.0,0.0003178,2]
[310326763,1704473492568,-694.38,0.0003178,2]
[310326764,1704473492580,-500.0,0.0003178,2]
[310326765,1704473492591,-742.45,0.0003178,2]
[310326766,1704473492602,-500.0,0.0003178,2]
[310326767,1704473492613,-500.0,0.0003178,2]
[310326768,1704473492625,-500.0,0.0003178,2]
[310326769,1704473492635,-500.0,0.0003178,2]
[310326770,1704473492646,-500.0,0.0003178,2]
[310326771,1704473492657,-500.0,0.0003178,2]
[310326772,1704473492668,-544.16,0.0003178,2]
[310326773,1704473492679,-671.99,0.0003178,2]
[310326774,1704473492690,-669.51,0.0003178,2]
[310326775,1704473492701,-500.0,0.0003178,2]
[310326776,1704473492712,-548.59,0.0003178,2]
[310326777,1704473492723,-500.0,0.0003178,2]
[310326778,1704473492735,-500.0,0.0003178,2]
[310326779,1704473492746,-500.0,0.0003178,2]
[310326780,1704473492758,-581.37109385,0.0003178,2]
[310326781,1704473492769,-500.0,0.0003178,2]
[310326782,1704473492779,-500.0,0.0003178,2]
[310326783,1704473492789,-1530.36,0.0003178,2]
[310326784,1704473492800,-583.81,0.0003178,2]
[310326785,1704473492810,-500.0,0.0003178,2]
[310326786,1704473492820,-500.0,0.0003178,2]
[310326787,1704473492830,-500.0,0.0003178,2]
[310326788,1704473492841,-500.0,0.0003178,2]
[310326789,1704473492852,-500.0,0.0003178,2]
[310326790,1704473492863,-500.0,0.0003178,2]
[310326791,1704473492874,-500.0,0.0003178,2]
[310326792,1704473492887,-500.0,0.0003178,2]
[310326793,1704473492902,-754.95,0.0003178,2]
[310326794,1704473492913,-593.07285448,0.0003178,2]
[310326795,1704473492924,-500.0,0.0003178,2]
[310326796,1704473492935,-500.0,0.0003178,2]
[310326797,1704473492946,-500.0,0.0003178,2]
[310326798,1704473492956,-500.0,0.0003178,2]
[310326799,1704473492967,-500.0,0.0003178,2]
[310326800,1704473492977,-500.0,0.0003178,2]
[310326801,1704473492988,-500.0,0.0003178,2]
[310326802,1704473492999,-500.0,0.0003178,2]
[310326803,1704473493293,-500.0,0.0003178,2]
[310326804,1704473493305,-500.0,0.0003178,2]
[310326805,1704473493315,-546.88554582,0.0003178,2]
[310326806,1704473493325,-500.0,0.0003178,2]
[310326807,1704473493336,-500.0,0.0003178,2]
[310326808,1704473493346,-500.0,0.0003178,2]
[310326809,1704473493356,-500.0,0.0003178,2]
[310326810,1704473493367,-158.79230441,0.0003178,2]
[310326811,1704473493377,-1275.01,0.0003178,2]
[310326812,1704473493388,-222.71776767,0.0003178,2]
[310326813,1704473493398,-500.0,0.0003178,2]
[310326814,1704473493407,-500.0,0.0003178,2]
[310326815,1704473493418,-500.0,0.0003178,2]
[310326816,1704473493428,-500.0,0.0003178,2]
[310326817,1704473493437,-500.0,0.0003178,2]
[310326818,1704473493449,-500.0,0.0003178,2]
[310326819,1704473493460,-500.0,0.0003178,2]
[310326820,1704473493470,-500.0,0.0003178,2]
[310326821,1704473493480,-500.0,0.0003178,2]
[310326822,1704473493490,-500.0,0.0003178,2]
[310326823,1704473493501,-258.88206711,0.0003178,2]
[310326824,1704473493512,-368.35059825,0.0003178,2]
[310326825,1704473493523,-500.0,0.0003178,2]
[310326826,1704473493533,-428.4876906,0.0003178,2]
[310326827,1704473493543,-843.96,0.0003178,2]
[310326828,1704473493554,-500.0,0.0003178,2]
[310326829,1704473493565,-500.0,0.0003178,2]
[310326830,1704473493575,-500.0,0.0003178,2]
[310326831,1704473493586,-500.0,0.0003178,2]
[310326832,1704473493598,-500.0,0.0003178,2]
[310326833,1704473493608,-590.62104653,0.0003178,2]
[310326834,1704473493619,-500.0,0.0003178,2]
[310326835,1704473493629,-207.89,0.0003178,2]
[310326836,1704473493640,-500.0,0.0003178,2]
[310326837,1704473493650,-500.0,0.0003178,2]
[310326838,1704473493661,-500.0,0.0003178,2]
[310326839,1704473493671,-500.0,0.0003178,2]
[310326840,1704473493681,-500.0,0.0003178,2]
[310326841,1704473493692,-500.0,0.0003178,2]
[310326842,1704473493702,-500.0,0.0003178,2]
[310326843,1704473493713,-807.23,0.0003178,2]
[310326844,1704473493723,-500.0,0.0003178,2]
[310326845,1704473493734,-500.0,0.0003178,2]
[310326846,1704473493744,-500.0,0.0003178,2]
[310326847,1704473493754,-500.0,0.0003178,2]
[310326848,1704473493766,-500.0,0.0003178,2]
[310326849,1704473493777,-500.0,0.0003178,2]
[310326850,1704473493787,-500.0,0.0003178,2]
[310326851,1704473493798,-500.0,0.0003178,2]
[310326852,1704473493809,-603.50781057,0.0003178,2]
[310326853,1704473493820,-721.09,0.0003178,2]
[310326854,1704473493831,-500.0,0.0003178,2]
[310326855,1704473493842,-500.0,0.0003178,2]
[310326856,1704473493853,-500.0,0.0003178,2]
[310326857,1704473493864,-328.70346399,0.0003178,2]
[310326858,1704473493875,-500.0,0.0003178,2]
[310326859,1704473493887,-528.3384618,0.0003178,2]
[310326860,1704473493901,-500.0,0.0003178,2]
[310326861,1704473493912,-500.0,0.0003178,2]
[310326862,1704473493924,-500.0,0.0003178,2]
[310326863,1704473493934,-500.0,0.0003178,2]
[310326864,1704473493946,-500.0,0.0003178,2]
[310326865,1704473493957,-500.0,0.0003178,2]
[310326866,1704473493968,-500.0,0.0003178,2]
[310326867,1704473493979,-500.0,0.0003178,2]
[310326868,1704473493990,-593.3,0.0003178,2]
[310326869,1704473494000,-500.0,0.0003178,2]
[310326870,1704473494012,-500.0,0.0003178,2]
[310326871,1704473494022,-500.0,0.0003178,2]
[310326872,1704473494032,-500.0,0.0003178,2]
[310326873,1704473494043,-500.0,0.0003178,2]
[310326874,1704473494053,-12011.09,0.0003178,2]
[310326875,1704473494064,-500.0,0.0003178,2]
[310326876,1704473494074,-500.0,0.0003178,2]
[310326877,1704473494085,-500.0,0.0003178,2]
[310326878,1704473494095,-1537.14,0.0003178,2]
[310326879,1704473494106,-500.0,0.0003178,2]
[310326880,1704473494117,-500.0,0.0003178,2]
[310326881,1704473494127,-1588.31,0.0003178,2]
[310326882,1704473494137,-5973.26,0.0003178,2]
[310326883,1704473494148,-416.75745053,0.0003178,2]
[310326884,1704473494158,-500.0,0.0003178,2]
[310326885,1704473494169,-562.91,0.0003178,2]
[310326886,1704473494179,-500.0,0.0003178,2]
[310326887,1704473494189,-522.82425902,0.0003178,2]
[310326888,1704473494200,-500.0,0.0003178,2]
[310326889,1704473494210,-1752.6,0.0003178,2]
[310326890,1704473494220,-3119.17,0.0003178,2]
[310326891,1704473494230,-1026.31,0.0003178,2]
[310326892,1704473494240,-1520.28,0.0003178,2]
[310326893,1704473494250,-1346.93,0.0003178,2]
[310326894,1704473494260,-500.0,0.0003178,2]
[310326895,1704473494272,-500.0,0.0003178,2]
[310326896,1704473494282,-500.0,0.0003178,2]
[310326897,1704473494292,-500.0,0.0003178,2]
[310326898,1704473494303,-500.0,0.0003178,2]
[310326899,1704473494313,-500.0,0.0003178,2]
[310326900,1704473494324,-500.0,0.0003178,2]
[310326901,1704473494334,-500.0,0.0003178,2]
[310326902,1704473494345,-500.0,0.0003178,2]
[310326903,1704473494355,-500.0,0.0003178,2]
[310326904,1704473494366,-621.93,0.0003178,2]
[310326905,1704473494376,-227.42968515,0.0003178,2]
[310326906,1704473494387,-500.0,0.0003178,2]
[310326907,1704473494398,-500.0,0.0003178,2]
[310326908,1704473494409,-871.85,0.0003178,2]
[310326909,1704473494420,-522.5,0.0003178,2]
[310326910,1704473494430,-2085.78,0.0003178,2]
[310326911,1704473494441,-790.33,0.0003178,2]
[310326912,1704473494451,-651.26,0.0003178,2]
[310326913,1704473494462,-500.0,0.0003178,2]
[310326914,1704473494472,-500.0,0.0003178,2]
[310326915,1704473494482,-1658.28,0.0003178,2]
[310326916,1704473494492,-2545.82,0.0003178,2]
[310326917,1704473494502,-500.0,0.0003178,2]
[310326918,1704473494515,-2368.93,0.0003178,2]
[310326919,1704473494525,-5035.78,0.0003178,2]
[310326920,1704473494535,-500.0,0.0003178,2]
[310326921,1704473494546,-500.0,0.0003178,2]
[310326922,1704473494556,-637.35767969,0.0003178,2]
[310326923,1704473494567,-500.0,0.0003178,2]
[310326924,1704473494577,-1615.12,0.0003178,2]
[310326925,1704473494589,-3964.99,0.0003178,2]
[310326926,1704473494599,-855.65,0.0003178,2]
[310326927,1704473494609,-500.0,0.0003178,2]
[310326928,1704473494620,-500.0,0.0003178,2]
[310326929,1704473494630,-900.42,0.0003178,2]
[310326930,1704473494641,-500.0,0.0003178,2]
[310326931,1704473494652,-527.61,0.0003178,2]
[310326932,1704473494662,-500.0,0.0003178,2]
[310326933,1704473494672,-500.0,0.0003178,2]
[310326934,1704473494683,-3932.79,0.0003178,2]
[310326935,1704473494693,-15880.58,0.0003178,2]
[310326936,1704473494704,-630.59,0.0003178,2]
[310326937,1704473494714,-2821.0,0.0003178,2]
[310326938,1704473494725,-500.0,0.0003178,2]
[310326939,1704473494736,-291.7652176,0.0003178,2]
[310326940,1704473494746,-500.0,0.0003178,2]
[310326941,1704473494759,-1090.66,0.0003178,2]
[310326942,1704473494769,-500.0,0.0003178,2]
[310326943,1704473494780,-160.31548389,0.0003178,2]
[310326944,1704473494790,-500.0,0.0003178,2]
[310326945,1704473494800,-500.0,0.0003178,2]
[310326946,1704473494811,-500.0,0.0003178,2]
[310326947,1704473494822,-1511.19,0.0003178,2]
[310326948,1704473494832,-500.0,0.0003178,2]
[310326949,1704473494843,-668.86,0.0003178,2]
[310326950,1704473494854,-500.0,0.0003178,2]
[310326951,1704473494865,-1950.6,0.0003178,2]
[310326952,1704473494876,-7990.73,0.0003178,2]
[310326953,1704473494889,-500.0,0.0003178,2]
[310326954,1704473494902,-500.0,0.0003178,2]
[310326955,1704473494913,-2431.79,0.0003178,2]
[310326956,1704473494924,-500.0,0.0003178,2]
[310326957,1704473494935,-500.0,0.0003178,2]
[310326958,1704473494947,-1509.04,0.0003178,2]
[310326959,1704473494966,-500.0,0.0003178,2]
[310326960,1704473494978,-500.0,0.0003178,2]
[310326961,1704473494989,-752.06,0.0003178,2]
[310326962,1704473495001,-527.49,0.0003178,2]
[310326963,1704473495015,-500.0,0.0003178,2]